[Event "*** Titled Tuesday Blitz"]
[Site "Chess.com"]
[Date "2020.12.01"]
[Round "7"]
[White "jefferyx"]
[Black "Vincent_Vega95"]
[Result "1-0"]
[WhiteElo "2922"]
[BlackElo "2764"]
[TimeControl "180+1"]
[EndTime "11:16:27 PST"]
[Termination "jefferyx won by resignation"]

1. d4 {[%clk 0:03:00.9]} 1... Nf6 {[%clk 0:02:59.8]} 2. c4 {[%clk 0:03:01.4]}
2... g6 {[%clk 0:03:00.1]} 3. Nc3 {[%clk 0:03:01.8]} 3... Bg7 {[%clk 0:03:00.8]}
4. e4 {[%clk 0:03:02.2]} 4... O-O {[%clk 0:03:01.5]} 5. Be2 {[%clk 0:03:02.9]}
5... d6 {[%clk 0:03:01.9]} 6. Be3 {[%clk 0:03:03.5]} 6... Na6 {[%clk 0:02:58.3]}
7. Nf3 {[%clk 0:03:03.5]} 7... e5 {[%clk 0:02:58]} 8. d5 {[%clk 0:03:03.9]} 8...
Ng4 {[%clk 0:02:57.1]} 9. Bg5 {[%clk 0:03:04]} 9... f6 {[%clk 0:02:57.6]} 10.
Bh4 {[%clk 0:03:04.5]} 10... h5 {[%clk 0:02:58]} 11. Nd2 {[%clk 0:03:05]} 11...
Nh6 {[%clk 0:02:55.8]} 12. f3 {[%clk 0:03:04.7]} 12... Nf7 {[%clk 0:02:53.3]}
13. a3 {[%clk 0:03:02.8]} 13... c5 {[%clk 0:02:53.5]} 14. dxc6 {[%clk
0:02:52.8]} 14... bxc6 {[%clk 0:02:53.6]} 15. b4 {[%clk 0:02:53.7]} 15... Nc7
{[%clk 0:02:47.7]} 16. Nb3 {[%clk 0:02:53.7]} 16... Bh6 {[%clk 0:02:28.7]} 17.
O-O {[%clk 0:02:47.8]} 17... Be6 {[%clk 0:02:26.7]} 18. Kh1 {[%clk 0:02:24.7]}
18... Bg5 {[%clk 0:02:25.5]} 19. Bf2 {[%clk 0:02:24.2]} 19... h4 {[%clk
0:02:17.4]} 20. Qd3 {[%clk 0:02:23.7]} 20... Qd7 {[%clk 0:02:10.7]} 21. Rad1
{[%clk 0:02:21.2]} 21... Rfd8 {[%clk 0:02:10.8]} 22. Na5 {[%clk 0:02:17.4]}
22... d5 {[%clk 0:01:30.8]} 23. Nxc6 {[%clk 0:01:24.2]} 23... dxc4 {[%clk
0:01:02.6]} 24. Qxd7 {[%clk 0:01:24.2]} 24... Rxd7 {[%clk 0:01:02.9]} 25. Rxd7
{[%clk 0:01:24]} 25... Bxd7 {[%clk 0:01:03.4]} 26. Nxa7 {[%clk 0:01:24.9]} 26...
Bd2 {[%clk 0:00:56.9]} 27. Rd1 {[%clk 0:01:12.9]} 27... Bxc3 {[%clk 0:00:36.4]}
28. Rxd7 {[%clk 0:01:12.6]} 28... Rd8 {[%clk 0:00:29.2]} 29. Rxd8+ {[%clk
0:00:36]} 29... Nxd8 {[%clk 0:00:29.1]} 30. Bxc4+ {[%clk 0:00:36.9]} 30... Kf8
{[%clk 0:00:28.3]} 31. Bb6 {[%clk 0:00:36]} 31... Nde6 {[%clk 0:00:26.7]} 32.
Nc6 {[%clk 0:00:33.7]} 32... Ke8 {[%clk 0:00:23.9]} 33. a4 {[%clk 0:00:31.4]}
33... Kd7 {[%clk 0:00:24]} 34. b5 {[%clk 0:00:31.7]} 34... Na8 {[%clk
0:00:20.6]} 35. Bf2 {[%clk 0:00:31]} 35... Nd4 {[%clk 0:00:20.8]} 36. Bxh4
{[%clk 0:00:29.7]} 36... g5 {[%clk 0:00:20.5]} 37. Bf2 {[%clk 0:00:26.7]} 37...
Nb6 {[%clk 0:00:20.9]} 38. Nxd4 {[%clk 0:00:18.4]} 38... exd4 {[%clk 0:00:19.9]}
39. Bb3 {[%clk 0:00:18.4]} 39... Kc7 {[%clk 0:00:18]} 40. Kg1 {[%clk 0:00:18.2]}
40... Nd7 {[%clk 0:00:17.2]} 41. a5 {[%clk 0:00:15.5]} 41... Nc5 {[%clk
0:00:17.2]} 42. Bc4 {[%clk 0:00:15.4]} 42... Kd6 {[%clk 0:00:17.1]} 43. a6
{[%clk 0:00:14.4]} 43... Kc7 {[%clk 0:00:17.1]} 44. Kf1 {[%clk 0:00:14.3]} 44...
Kb6 {[%clk 0:00:17.4]} 45. Ke2 {[%clk 0:00:14.9]} 45... Na4 {[%clk 0:00:17.4]}
46. g3 {[%clk 0:00:11.6]} 46... Nb2 {[%clk 0:00:16.8]} 47. Bd3 {[%clk 0:00:12]}
47... Na4 {[%clk 0:00:16.6]} 48. h4 {[%clk 0:00:12.1]} 48... gxh4 {[%clk
0:00:16.9]} 49. gxh4 {[%clk 0:00:13]} 49... Nc5 {[%clk 0:00:17.4]} 50. h5 {[%clk
0:00:13.6]} 50... Ne6 {[%clk 0:00:17.9]} 51. Bg3 {[%clk 0:00:12.7]} 1-0

[Event "*** Titled Tuesday Blitz"]
[Site "Chess.com"]
[Date "2020.12.01"]
[Round "7"]
[White "mbojan"]
[Black "IngOscarArdila"]
[Result "1-0"]
[WhiteElo "2655"]
[BlackElo "2210"]
[TimeControl "180+1"]
[EndTime "11:16:27 PST"]
[Termination "mbojan won by resignation"]

1. g3 {[%clk 0:03:00.6]} 1... Nf6 {[%clk 0:02:59.6]} 2. Bg2 {[%clk 0:03:00.9]}
2... g6 {[%clk 0:03:00.2]} 3. d3 {[%clk 0:03:01]} 3... Bg7 {[%clk 0:03:00.8]} 4.
Nd2 {[%clk 0:03:01.9]} 4... d6 {[%clk 0:03:01.2]} 5. e4 {[%clk 0:03:02.8]} 5...
O-O {[%clk 0:03:01.5]} 6. Nh3 {[%clk 0:03:03.3]} 6... e5 {[%clk 0:03:01.6]} 7.
O-O {[%clk 0:03:01.8]} 7... Bg4 {[%clk 0:03:01.2]} 8. f3 {[%clk 0:03:01.7]} 8...
Bc8 {[%clk 0:02:57]} 9. Nf2 {[%clk 0:03:01.9]} 9... Nbd7 {[%clk 0:02:57.3]} 10.
f4 {[%clk 0:03:02.4]} 10... exf4 {[%clk 0:02:54.1]} 11. gxf4 {[%clk 0:03:03.3]}
11... Nh5 {[%clk 0:02:54.4]} 12. Nf3 {[%clk 0:02:55.4]} 12... f5 {[%clk
0:02:51.2]} 13. Ng5 {[%clk 0:02:29.5]} 13... Ndf6 {[%clk 0:02:50.9]} 14. exf5
{[%clk 0:02:16.9]} 14... Bxf5 {[%clk 0:02:48.5]} 15. Bxb7 {[%clk 0:02:16]} 15...
h6 {[%clk 0:02:46]} 16. Nge4 {[%clk 0:02:10.9]} 16... Rb8 {[%clk 0:02:42.1]} 17.
Nxf6+ {[%clk 0:02:08.4]} 17... Qxf6 {[%clk 0:02:39.3]} 18. Bd5+ {[%clk
0:02:07.4]} 18... Kh8 {[%clk 0:02:39]} 19. c3 {[%clk 0:02:07.1]} 19... Qh4
{[%clk 0:02:38.2]} 20. Qf3 {[%clk 0:02:03.3]} 20... Bd7 {[%clk 0:02:35]} 21. Ne4
{[%clk 0:01:34.6]} 21... Bh3 {[%clk 0:02:22.8]} 22. Rf2 {[%clk 0:01:14.6]} 22...
Bg4 {[%clk 0:02:22.2]} 23. Qg2 {[%clk 0:01:08.1]} 23... Rb5 {[%clk 0:02:01.8]}
24. c4 {[%clk 0:01:04.4]} 24... Rbb8 {[%clk 0:01:57.3]} 25. Be3 {[%clk
0:01:04.1]} 25... Bh3 {[%clk 0:01:51.1]} 26. Qxg6 {[%clk 0:01:03]} 26... Bf5
{[%clk 0:01:37.2]} 27. Qg2 {[%clk 0:00:57.2]} 27... Bh3 {[%clk 0:01:37.1]} 28.
Qf3 {[%clk 0:00:37.7]} 28... Bg4 {[%clk 0:01:37.1]} 29. Qh1 {[%clk 0:00:37.9]}
29... Rxb2 {[%clk 0:01:31.9]} 30. Rxb2 {[%clk 0:00:34.9]} 30... Bxb2 {[%clk
0:01:31.5]} 31. Rb1 {[%clk 0:00:31.8]} 31... Bg7 {[%clk 0:01:27.2]} 32. Rf1
{[%clk 0:00:23.1]} 32... Be2 {[%clk 0:01:27.1]} 33. Rf2 {[%clk 0:00:21.4]} 33...
Bxd3 {[%clk 0:01:26.9]} 34. Qg2 {[%clk 0:00:19.4]} 34... Rb8 {[%clk 0:00:58.8]}
35. h3 {[%clk 0:00:11.2]} 35... Rb1+ {[%clk 0:00:51.3]} 36. Kh2 {[%clk
0:00:11.4]} 36... Rb8 {[%clk 0:00:47.2]} 37. Ng3 {[%clk 0:00:11.2]} 37... Nf6
{[%clk 0:00:34.9]} 38. Bf3 {[%clk 0:00:08.7]} 38... Bxc4 {[%clk 0:00:33.1]} 39.
Nf5 {[%clk 0:00:08.8]} 39... Ng4+ {[%clk 0:00:21.4]} 40. Bxg4 {[%clk 0:00:09.2]}
40... Qd8 {[%clk 0:00:15.1]} 41. Nxg7 {[%clk 0:00:09.4]} 41... Kxg7 {[%clk
0:00:15]} 42. Be2+ {[%clk 0:00:10.1]} 42... Kh8 {[%clk 0:00:14.1]} 43. Bxc4
{[%clk 0:00:10.6]} 43... Qf6 {[%clk 0:00:13.4]} 44. Rd2 {[%clk 0:00:10.1]} 44...
c5 {[%clk 0:00:12]} 45. Qd5 {[%clk 0:00:09.7]} 45... Rf8 {[%clk 0:00:11.3]} 46.
Rg2 {[%clk 0:00:09.9]} 46... a5 {[%clk 0:00:10]} 47. Bc1 {[%clk 0:00:09.8]}
47... Kh7 {[%clk 0:00:09.6]} 48. Bd3+ {[%clk 0:00:10]} 48... Kh8 {[%clk
0:00:09.3]} 49. Bb2 {[%clk 0:00:10.6]} 1-0

[Event "*** Titled Tuesday Blitz"]
[Site "Chess.com"]
[Date "2020.12.01"]
[Round "7"]
[White "PriSachu"]
[Black "profofchess"]
[Result "1/2-1/2"]
[WhiteElo "2526"]
[BlackElo "2430"]
[TimeControl "180+1"]
[EndTime "11:16:29 PST"]
[Termination "Game drawn by repetition"]

1. e4 {[%clk 0:03:00.9]} 1... e6 {[%clk 0:03:00.2]} 2. Bb5 {[%clk 0:02:53.9]}
2... a6 {[%clk 0:02:57.9]} 3. Ba4 {[%clk 0:02:53.2]} 3... b5 {[%clk 0:02:57.2]}
4. Bb3 {[%clk 0:02:53.4]} 4... d5 {[%clk 0:02:56.3]} 5. e5 {[%clk 0:02:52.7]}
5... c5 {[%clk 0:02:54.4]} 6. c3 {[%clk 0:02:52.9]} 6... d4 {[%clk 0:02:16.8]}
7. d3 {[%clk 0:02:48.3]} 7... Bb7 {[%clk 0:01:57.4]} 8. Nf3 {[%clk 0:02:48]}
8... Nc6 {[%clk 0:01:57.1]} 9. O-O {[%clk 0:02:47.1]} 9... Nge7 {[%clk
0:01:56.6]} 10. a4 {[%clk 0:02:44.4]} 10... Ng6 {[%clk 0:01:55.6]} 11. Re1
{[%clk 0:02:41.7]} 11... Be7 {[%clk 0:01:53.4]} 12. axb5 {[%clk 0:02:40.9]}
12... axb5 {[%clk 0:01:53.2]} 13. Rxa8 {[%clk 0:02:41.4]} 13... Qxa8 {[%clk
0:01:45]} 14. Na3 {[%clk 0:02:41.5]} 14... Ba6 {[%clk 0:01:13]} 15. c4 {[%clk
0:02:24.9]} 15... b4 {[%clk 0:01:00.4]} 16. Nb1 {[%clk 0:02:17.6]} 16... O-O
{[%clk 0:00:58.1]} 17. Nbd2 {[%clk 0:02:06.5]} 17... Bb7 {[%clk 0:00:56.2]} 18.
Nf1 {[%clk 0:01:54.3]} 18... Bd8 {[%clk 0:00:51.2]} 19. Ng3 {[%clk 0:00:58.2]}
19... Bc7 {[%clk 0:00:51.1]} 20. Ng5 {[%clk 0:00:49.3]} 20... Ncxe5 {[%clk
0:00:27.5]} 21. f4 {[%clk 0:00:21.3]} 21... Nd7 {[%clk 0:00:24]} 22. Qh5 {[%clk
0:00:19.2]} 22... Nf6 {[%clk 0:00:23.8]} 23. Qh3 {[%clk 0:00:16.8]} 23... Nxf4
{[%clk 0:00:20.1]} 24. Bxf4 {[%clk 0:00:14.3]} 24... Bxf4 {[%clk 0:00:21]} 25.
N5e4 {[%clk 0:00:14.6]} 25... Nxe4 {[%clk 0:00:19.7]} 26. Nxe4 {[%clk
0:00:15.5]} 26... Bxe4 {[%clk 0:00:14.3]} 27. dxe4 {[%clk 0:00:15.3]} 27... e5
{[%clk 0:00:10.4]} 28. Qd3 {[%clk 0:00:15.8]} 28... Be3+ {[%clk 0:00:10.5]} 29.
Kh1 {[%clk 0:00:15.5]} 29... Qa7 {[%clk 0:00:08.7]} 30. Bd1 {[%clk 0:00:15.4]}
30... Ra8 {[%clk 0:00:08.4]} 31. h4 {[%clk 0:00:11.5]} 31... Qa2 {[%clk
0:00:07.9]} 32. b3 {[%clk 0:00:11.7]} 32... Qb2 {[%clk 0:00:07.6]} 33. Qf1
{[%clk 0:00:11.3]} 33... Ra2 {[%clk 0:00:07.3]} 34. Qf3 {[%clk 0:00:11.4]} 34...
Bf4 {[%clk 0:00:06.6]} 35. Qg4 {[%clk 0:00:11.2]} 35... h6 {[%clk 0:00:05.8]}
36. Rf1 {[%clk 0:00:09.5]} 36... g6 {[%clk 0:00:05.6]} 37. h5 {[%clk 0:00:09.1]}
37... Kg7 {[%clk 0:00:05.6]} 38. hxg6 {[%clk 0:00:09]} 38... fxg6 {[%clk
0:00:05.8]} 39. Qd7+ {[%clk 0:00:09.6]} 39... Kh8 {[%clk 0:00:05.5]} 40. Qc8+
{[%clk 0:00:09.4]} 40... Kg7 {[%clk 0:00:05.9]} 41. Qd7+ {[%clk 0:00:09.8]}
41... Kh8 {[%clk 0:00:06.2]} 42. Qe8+ {[%clk 0:00:10.3]} 42... Kg7 {[%clk
0:00:06.4]} 43. Qe7+ {[%clk 0:00:09.8]} 43... Kg8 {[%clk 0:00:06.7]} 44. Qe8+
{[%clk 0:00:09.7]} 44... Kg7 {[%clk 0:00:06.4]} 45. Qe7+ {[%clk 0:00:10.5]}
45... Kg8 {[%clk 0:00:06.7]} 46. Qd8+ {[%clk 0:00:11.1]} 46... Kg7 {[%clk
0:00:06.9]} 47. Qc7+ {[%clk 0:00:11.3]} 47... Kg8 {[%clk 0:00:07.2]} 48. Qc8+
{[%clk 0:00:10.9]} 48... Kg7 {[%clk 0:00:07.6]} 49. Qd7+ {[%clk 0:00:10.3]}
1/2-1/2

[Event "*** Titled Tuesday Blitz"]
[Site "Chess.com"]
[Date "2020.12.01"]
[Round "7"]
[White "barriochess"]
[Black "Vandros57"]
[Result "1/2-1/2"]
[WhiteElo "2387"]
[BlackElo "2173"]
[TimeControl "180+1"]
[EndTime "11:16:29 PST"]
[Termination "Game drawn by repetition"]

1. d4 {[%clk 0:03:00.9]} 1... d5 {[%clk 0:02:58.6]} 2. c4 {[%clk 0:03:00.2]}
2... e6 {[%clk 0:02:57.3]} 3. Nf3 {[%clk 0:02:57.8]} 3... Nf6 {[%clk 0:02:56.2]}
4. g3 {[%clk 0:02:57.4]} 4... Bb4+ {[%clk 0:02:51.1]} 5. Nc3 {[%clk 0:02:56]}
5... O-O {[%clk 0:02:42]} 6. Bg2 {[%clk 0:02:50]} 6... Ne4 {[%clk 0:02:40.8]} 7.
Qc2 {[%clk 0:02:41.5]} 7... f5 {[%clk 0:02:35.9]} 8. O-O {[%clk 0:02:40.3]} 8...
c6 {[%clk 0:02:32.8]} 9. a3 {[%clk 0:02:29.8]} 9... Bd6 {[%clk 0:02:30.8]} 10.
b4 {[%clk 0:02:27.4]} 10... Nd7 {[%clk 0:02:28.4]} 11. Bf4 {[%clk 0:02:26.8]}
11... Bxf4 {[%clk 0:02:26.2]} 12. gxf4 {[%clk 0:02:27.3]} 12... Nxc3 {[%clk
0:02:18.5]} 13. Qxc3 {[%clk 0:02:27.1]} 13... Nf6 {[%clk 0:02:17.6]} 14. Ne5
{[%clk 0:02:23.8]} 14... Bd7 {[%clk 0:02:14.3]} 15. a4 {[%clk 0:02:17.6]} 15...
Be8 {[%clk 0:02:11.6]} 16. e3 {[%clk 0:02:15.8]} 16... Ne4 {[%clk 0:02:07.4]}
17. Bxe4 {[%clk 0:02:09.3]} 17... fxe4 {[%clk 0:02:06.2]} 18. Kh1 {[%clk
0:02:04]} 18... Rf5 {[%clk 0:02:04.2]} 19. Rg1 {[%clk 0:02:03.8]} 19... Rh5
{[%clk 0:02:01.6]} 20. Rg2 {[%clk 0:02:03.6]} 20... Rc8 {[%clk 0:01:44.8]} 21.
Rag1 {[%clk 0:02:03.2]} 21... Rc7 {[%clk 0:01:43.9]} 22. Qb2 {[%clk 0:01:47.7]}
22... Rh3 {[%clk 0:01:40]} 23. Rg3 {[%clk 0:01:46.3]} 23... Qh4 {[%clk
0:01:32.9]} 24. R1g2 {[%clk 0:01:38.6]} 24... Bh5 {[%clk 0:01:28.8]} 25. Kg1
{[%clk 0:01:31.8]} 25... Bf3 {[%clk 0:01:19.9]} 26. Rxh3 {[%clk 0:01:19.8]}
26... Qxh3 {[%clk 0:01:16.6]} 27. Rg3 {[%clk 0:01:18.9]} 27... Qh5 {[%clk
0:01:11.7]} 28. b5 {[%clk 0:01:13.1]} 28... h6 {[%clk 0:01:01.9]} 29. bxc6
{[%clk 0:01:11.2]} 29... Qe8 {[%clk 0:00:47.5]} 30. c5 {[%clk 0:00:20.5]} 30...
bxc6 {[%clk 0:00:42]} 31. Nxf3 {[%clk 0:00:20.5]} 31... exf3 {[%clk 0:00:41]}
32. Rxf3 {[%clk 0:00:21.4]} 32... Qc8 {[%clk 0:00:36.2]} 33. Rg3 {[%clk
0:00:21.4]} 33... Rb7 {[%clk 0:00:34.6]} 34. Qc2 {[%clk 0:00:21.8]} 34... Qe8
{[%clk 0:00:28.6]} 35. Kg2 {[%clk 0:00:22.2]} 35... Rb4 {[%clk 0:00:27.4]} 36.
a5 {[%clk 0:00:21.3]} 36... a6 {[%clk 0:00:26.5]} 37. Qe2 {[%clk 0:00:18.6]}
37... Rb5 {[%clk 0:00:25.5]} 38. Qg4 {[%clk 0:00:18.3]} 38... Qe7 {[%clk
0:00:24.2]} 39. Qg6 {[%clk 0:00:16.6]} 39... Kf8 {[%clk 0:00:22]} 40. f5 {[%clk
0:00:16.5]} 40... exf5 {[%clk 0:00:21.3]} 41. Qxf5+ {[%clk 0:00:17.4]} 41... Kg8
{[%clk 0:00:17.7]} 42. Qc8+ {[%clk 0:00:17.3]} 42... Kh7 {[%clk 0:00:16.2]} 43.
Qxc6 {[%clk 0:00:13.3]} 43... Qe4+ {[%clk 0:00:15.6]} 44. Rf3 {[%clk 0:00:08.6]}
44... Qg4+ {[%clk 0:00:15]} 45. Rg3 {[%clk 0:00:09]} 45... Qe4+ {[%clk
0:00:14.4]} 46. Rf3 {[%clk 0:00:04]} 46... Qg4+ {[%clk 0:00:14.2]} 47. Rg3
{[%clk 0:00:04.4]} 47... Qe4+ {[%clk 0:00:14.1]} 1/2-1/2

[Event "*** Titled Tuesday Blitz"]
[Site "Chess.com"]
[Date "2020.12.01"]
[Round "7"]
[White "Kolle05"]
[Black "QuintilianoR"]
[Result "0-1"]
[WhiteElo "2442"]
[BlackElo "2623"]
[TimeControl "180+1"]
[EndTime "11:16:30 PST"]
[Termination "QuintilianoR won on time"]

1. e4 {[%clk 0:03:00.9]} 1... c5 {[%clk 0:02:59.9]} 2. Nf3 {[%clk 0:03:00.1]}
2... d6 {[%clk 0:02:59.7]} 3. Bb5+ {[%clk 0:02:59.3]} 3... Nd7 {[%clk
0:02:58.5]} 4. O-O {[%clk 0:02:58.2]} 4... a6 {[%clk 0:02:56.5]} 5. Bd3 {[%clk
0:02:58.6]} 5... Ngf6 {[%clk 0:02:55.7]} 6. Re1 {[%clk 0:02:58]} 6... e6 {[%clk
0:02:55]} 7. c3 {[%clk 0:02:58.2]} 7... b5 {[%clk 0:02:53.7]} 8. Bc2 {[%clk
0:02:56.9]} 8... Bb7 {[%clk 0:02:53.5]} 9. a4 {[%clk 0:02:54.2]} 9... Be7 {[%clk
0:02:52.7]} 10. d4 {[%clk 0:02:54.1]} 10... Qc7 {[%clk 0:02:29.9]} 11. Qe2
{[%clk 0:02:42.4]} 11... cxd4 {[%clk 0:02:09.8]} 12. cxd4 {[%clk 0:02:43.3]}
12... b4 {[%clk 0:02:08.8]} 13. Bd3 {[%clk 0:02:36]} 13... O-O {[%clk
0:02:02.4]} 14. a5 {[%clk 0:02:32.1]} 14... Rfc8 {[%clk 0:01:57.8]} 15. Nbd2
{[%clk 0:02:31.5]} 15... Nf8 {[%clk 0:01:53.1]} 16. Nb3 {[%clk 0:02:25]} 16...
d5 {[%clk 0:01:41]} 17. e5 {[%clk 0:02:23.3]} 17... Ne4 {[%clk 0:01:39.7]} 18.
Nfd2 {[%clk 0:02:19.3]} 18... Ng6 {[%clk 0:01:23.1]} 19. Nxe4 {[%clk 0:01:58.4]}
19... dxe4 {[%clk 0:01:22.7]} 20. Bxe4 {[%clk 0:01:59.3]} 20... Bxe4 {[%clk
0:01:22.8]} 21. Qxe4 {[%clk 0:02:00.2]} 21... Qc4 {[%clk 0:01:22.6]} 22. Qf3
{[%clk 0:01:39.3]} 22... Nh4 {[%clk 0:01:18.4]} 23. Qh3 {[%clk 0:01:35.5]} 23...
Nf5 {[%clk 0:01:16.8]} 24. Bf4 {[%clk 0:00:48]} 24... Qd5 {[%clk 0:01:12.1]} 25.
Qd3 {[%clk 0:00:36.4]} 25... Rc4 {[%clk 0:01:08.4]} 26. Red1 {[%clk 0:00:34.5]}
26... Rac8 {[%clk 0:01:05.7]} 27. Rac1 {[%clk 0:00:34.5]} 27... h6 {[%clk
0:00:34.5]} 28. Rxc4 {[%clk 0:00:29.4]} 28... Rxc4 {[%clk 0:00:35.4]} 29. Rc1
{[%clk 0:00:28]} 29... Rxc1+ {[%clk 0:00:32.1]} 30. Bxc1 {[%clk 0:00:28.9]}
30... Bd8 {[%clk 0:00:28.3]} 31. Bd2 {[%clk 0:00:27.9]} 31... Bxa5 {[%clk
0:00:26.5]} 32. Nxa5 {[%clk 0:00:22.4]} 32... Qxa5 {[%clk 0:00:26]} 33. g3
{[%clk 0:00:15.2]} 33... Qa1+ {[%clk 0:00:22.6]} 34. Kg2 {[%clk 0:00:14.4]}
34... Qxb2 {[%clk 0:00:23]} 35. d5 {[%clk 0:00:05.7]} 35... Qxe5 {[%clk
0:00:20]} 36. dxe6 {[%clk 0:00:05.7]} 36... fxe6 {[%clk 0:00:19.6]} 37. Bxb4
{[%clk 0:00:06]} 37... Qd5+ {[%clk 0:00:16.1]} 38. Qxd5 {[%clk 0:00:03.9]} 38...
exd5 {[%clk 0:00:17]} 39. Kf3 {[%clk 0:00:04.6]} 39... Nd4+ {[%clk 0:00:16.1]}
40. Kf4 {[%clk 0:00:03.5]} 40... Kf7 {[%clk 0:00:15.9]} 41. Ba5 {[%clk
0:00:02.3]} 41... Nc6 {[%clk 0:00:14.4]} 0-1

[Event "*** Titled Tuesday Blitz"]
[Site "Chess.com"]
[Date "2020.12.01"]
[Round "7"]
[White "c_r_e_e_p_e_r"]
[Black "yonaltimur"]
[Result "1-0"]
[WhiteElo "2307"]
[BlackElo "1829"]
[TimeControl "180+1"]
[EndTime "11:16:30 PST"]
[Termination "c_r_e_e_p_e_r won on time"]

1. e4 {[%clk 0:03:00.9]} 1... c5 {[%clk 0:02:58.9]} 2. Nf3 {[%clk 0:03:01.1]}
2... e6 {[%clk 0:02:58.5]} 3. d4 {[%clk 0:03:01.8]} 3... cxd4 {[%clk 0:02:58.2]}
4. Nxd4 {[%clk 0:03:02.7]} 4... a6 {[%clk 0:02:56.5]} 5. Bd3 {[%clk 0:03:02.3]}
5... Qc7 {[%clk 0:02:48.8]} 6. O-O {[%clk 0:03:02.8]} 6... b5 {[%clk 0:02:46.6]}
7. Qe2 {[%clk 0:03:02.6]} 7... d6 {[%clk 0:02:45.2]} 8. a4 {[%clk 0:02:58.2]}
8... b4 {[%clk 0:02:43.8]} 9. c3 {[%clk 0:02:58.4]} 9... bxc3 {[%clk 0:02:42.8]}
10. Nxc3 {[%clk 0:02:59.3]} 10... Bb7 {[%clk 0:02:40.1]} 11. Be3 {[%clk
0:02:55.6]} 11... Nf6 {[%clk 0:02:39.3]} 12. Rfc1 {[%clk 0:02:54.1]} 12... Qd8
{[%clk 0:02:37.5]} 13. b4 {[%clk 0:02:51.2]} 13... Be7 {[%clk 0:02:36.4]} 14. b5
{[%clk 0:02:51.1]} 14... a5 {[%clk 0:02:35.4]} 15. b6 {[%clk 0:02:23.5]} 15...
O-O {[%clk 0:02:31.2]} 16. Ndb5 {[%clk 0:02:18.1]} 16... Na6 {[%clk 0:02:29.4]}
17. Nc7 {[%clk 0:02:09.8]} 17... Nxc7 {[%clk 0:02:05.8]} 18. bxc7 {[%clk
0:02:10.7]} 18... Qd7 {[%clk 0:01:44.4]} 19. Bb6 {[%clk 0:02:04.2]} 19... d5
{[%clk 0:01:36.5]} 20. e5 {[%clk 0:01:43.6]} 20... Ne8 {[%clk 0:00:58.6]} 21.
Bb5 {[%clk 0:01:29.6]} 21... Qc8 {[%clk 0:00:41.4]} 22. Nd1 {[%clk 0:01:20]}
22... f6 {[%clk 0:00:28.4]} 23. exf6 {[%clk 0:01:15.2]} 23... Nxf6 {[%clk
0:00:24.5]} 24. Nb2 {[%clk 0:01:11.4]} 24... Ne4 {[%clk 0:00:23.3]} 25. Nd3
{[%clk 0:01:11.3]} 25... Bf6 {[%clk 0:00:20.9]} 26. Ra3 {[%clk 0:01:07.3]} 26...
Ba6 {[%clk 0:00:17.7]} 27. f3 {[%clk 0:01:01.4]} 27... Ng5 {[%clk 0:00:14.3]}
28. Ne5 {[%clk 0:00:52.6]} 28... Bxb5 {[%clk 0:00:13.1]} 29. axb5 {[%clk
0:00:53.5]} 29... Qb7 {[%clk 0:00:11.9]} 30. Nd7 {[%clk 0:00:42.4]} 30... Rfe8
{[%clk 0:00:11.2]} 31. Qe3 {[%clk 0:00:36.7]} 31... Nf7 {[%clk 0:00:09.7]} 32.
Rxa5 {[%clk 0:00:31.6]} 32... Rxa5 {[%clk 0:00:08.7]} 33. Bxa5 {[%clk
0:00:32.3]} 33... e5 {[%clk 0:00:08.6]} 34. Nb6 {[%clk 0:00:24.5]} 34... Nd6
{[%clk 0:00:08.3]} 35. Bb4 {[%clk 0:00:22.1]} 35... Nxb5 {[%clk 0:00:07.2]} 36.
c8=Q {[%clk 0:00:21.4]} 36... Rxc8 {[%clk 0:00:06.2]} 37. Rxc8+ {[%clk
0:00:21.3]} 37... Kf7 {[%clk 0:00:05.5]} 38. Qc5 {[%clk 0:00:21.3]} 38... Kg6
{[%clk 0:00:05]} 39. Qxb5 {[%clk 0:00:20.5]} 39... Bg5 {[%clk 0:00:02.2]} 40.
Qe8+ {[%clk 0:00:19.4]} 40... Kf5 {[%clk 0:00:01.9]} 41. Qc6 {[%clk 0:00:14.6]}
41... Qa6 {[%clk 0:00:01.5]} 42. Qd7+ {[%clk 0:00:13.1]} 42... Kf4 {[%clk
0:00:01.2]} 43. Qg4+ {[%clk 0:00:12.7]} 43... Ke3 {[%clk 0:00:01.2]} 44. Nxd5+
{[%clk 0:00:13]} 44... Ke2 {[%clk 0:00:01.1]} 45. Qc4+ {[%clk 0:00:11.4]} 1-0

[Event "*** Titled Tuesday Blitz"]
[Site "Chess.com"]
[Date "2020.12.01"]
[Round "7"]
[White "GelmanAlexander"]
[Black "anon481216"]
[Result "1/2-1/2"]
[WhiteElo "2570"]
[BlackElo "2421"]
[TimeControl "180+1"]
[EndTime "11:16:33 PST"]
[Termination "Game drawn by repetition"]

1. d4 {[%clk 0:03:00.9]} 1... d5 {[%clk 0:02:59.3]} 2. Nc3 {[%clk 0:03:00.9]}
2... Nf6 {[%clk 0:02:58.4]} 3. Bf4 {[%clk 0:03:00.8]} 3... c6 {[%clk 0:02:54.4]}
4. f3 {[%clk 0:03:00.9]} 4... g6 {[%clk 0:02:53]} 5. e4 {[%clk 0:03:00.6]} 5...
Bg7 {[%clk 0:02:51.3]} 6. Qd2 {[%clk 0:02:59.7]} 6... Nbd7 {[%clk 0:02:35]} 7.
O-O-O {[%clk 0:02:50.1]} 7... Nb6 {[%clk 0:02:26.2]} 8. Kb1 {[%clk 0:02:43.1]}
8... Be6 {[%clk 0:02:25.5]} 9. h4 {[%clk 0:02:23.9]} 9... h5 {[%clk 0:02:24.5]}
10. Nh3 {[%clk 0:02:22.1]} 10... Bxh3 {[%clk 0:02:20.7]} 11. Rxh3 {[%clk
0:02:12.1]} 11... Qd7 {[%clk 0:02:20.1]} 12. Rh1 {[%clk 0:02:04.9]} 12... O-O-O
{[%clk 0:02:15.1]} 13. a4 {[%clk 0:01:48.2]} 13... dxe4 {[%clk 0:01:58.3]} 14.
fxe4 {[%clk 0:01:38.3]} 14... Ng4 {[%clk 0:01:58.1]} 15. a5 {[%clk 0:01:32.2]}
15... Na8 {[%clk 0:01:57.8]} 16. a6 {[%clk 0:01:12.7]} 16... b6 {[%clk
0:01:57.3]} 17. d5 {[%clk 0:01:02.4]} 17... Nc7 {[%clk 0:01:54.6]} 18. Rh3
{[%clk 0:01:01.1]} 18... e5 {[%clk 0:01:47.9]} 19. Bg3 {[%clk 0:00:43.9]} 19...
cxd5 {[%clk 0:01:26.4]} 20. Nxd5 {[%clk 0:00:37.8]} 20... Nxd5 {[%clk
0:01:25.8]} 21. exd5 {[%clk 0:00:38.7]} 21... f5 {[%clk 0:01:22.9]} 22. Be1
{[%clk 0:00:28.8]} 22... Kb8 {[%clk 0:01:20.1]} 23. Rb3 {[%clk 0:00:26.6]} 23...
e4 {[%clk 0:01:13.8]} 24. Bb5 {[%clk 0:00:26.4]} 24... Qd6 {[%clk 0:01:05.4]}
25. Bg3 {[%clk 0:00:24.5]} 25... Be5 {[%clk 0:01:04.2]} 26. Bxe5 {[%clk
0:00:24.7]} 26... Nxe5 {[%clk 0:01:03.7]} 27. Rc3 {[%clk 0:00:21.5]} 27... Rh7
{[%clk 0:00:57.9]} 28. Qf4 {[%clk 0:00:19.2]} 28... Rc7 {[%clk 0:00:47]} 29.
Rxc7 {[%clk 0:00:13.3]} 29... Kxc7 {[%clk 0:00:46.8]} 30. c4 {[%clk 0:00:12]}
30... Nd3 {[%clk 0:00:32.1]} 31. Qd2 {[%clk 0:00:08.3]} 31... Qe5 {[%clk
0:00:23.9]} 32. Qb4 {[%clk 0:00:08.6]} 32... Rd6 {[%clk 0:00:20.1]} 33. Qb3
{[%clk 0:00:05.5]} 33... Nc5 {[%clk 0:00:19.1]} 34. Qc2 {[%clk 0:00:04.8]} 34...
f4 {[%clk 0:00:19]} 35. Rf1 {[%clk 0:00:04.2]} 35... e3 {[%clk 0:00:18.2]} 36.
Ka2 {[%clk 0:00:01.4]} 36... Ne4 {[%clk 0:00:17.4]} 37. g3 {[%clk 0:00:01.8]}
37... Nxg3 {[%clk 0:00:15.1]} 38. c5 {[%clk 0:00:02.2]} 38... Qxd5+ {[%clk
0:00:09.1]} 39. Bc4 {[%clk 0:00:02.4]} 39... Qxc5 {[%clk 0:00:09.1]} 40. Rxf4
{[%clk 0:00:02.7]} 40... Qa5+ {[%clk 0:00:07.8]} 41. Kb1 {[%clk 0:00:01.9]}
41... Qe1+ {[%clk 0:00:07.7]} 42. Ka2 {[%clk 0:00:02.1]} 42... Qa5+ {[%clk
0:00:05.1]} 43. Kb1 {[%clk 0:00:02.6]} 43... Qe1+ {[%clk 0:00:02.8]} 44. Ka2
{[%clk 0:00:02.7]} 44... Qa5+ {[%clk 0:00:01.8]} 1/2-1/2